fUSD/lending_fUSD_20250602
["ID","MTS","AMOUNT","RATE_DAILY","PERIOD"]
[363864551,1748904669290,-150.0,0.00040401,7]
[363864552,1748904669299,-200.0,0.00040414,7]
[363864553,1748904669309,-500.0,0.00040445,30]
[363864554,1748904669319,-747.80285252,0.00040447,15]
[363864555,1748904669328,-1451.0,0.00040486,20]
[363864556,1748904669338,-662.8152,0.00040488,30]
[363864557,1748904669347,-1000.0,0.000405,2]
[363864558,1748904669356,-294.23691497,0.000405,120]
[363864559,1748904669366,-2694.19,0.000405,14]
[363864560,1748904669375,-2585.1724789,0.00040519,2]
[363864561,1748904669384,-8016.5221061,0.00040519,2]
[363864562,1748904669393,-300.0,0.00040546,10]
[363864563,1748904669403,-1028.97,0.00040547,9]
[363864564,1748904669412,-150.0,0.00040547,2]
[363864565,1748904669421,-460.0,0.00040547,6]
[363864566,1748904669430,-790.55,0.00040547,6]
[363864567,1748904669439,-1040.53,0.00040547,6]
[363864568,1748904669448,-719.75,0.00040547,6]
[363864569,1748904669458,-280.95575624,0.00040547,6]
[363864570,1748904669467,-460.0,0.00040547,6]
[363864571,1748904669477,-460.0,0.00040547,6]
[363864572,1748904669486,-460.0,0.00040547,2]
[363864573,1748904669495,-722.99,0.00040547,6]
[363864574,1748904669504,-757.63,0.00040547,6]
[363864575,1748904669512,-836.91,0.00040547,6]
[363864576,1748904669522,-758.64,0.00040547,6]
[363864577,1748904669531,-460.0,0.00040547,6]
[363864578,1748904669541,-507.42,0.00040547,6]
[363864579,1748904669551,-480.79,0.00040547,6]
[363864580,1748904669560,-1127.48,0.00040547,6]
[363864581,1748904669570,-1170.16,0.00040547,6]
[363864582,1748904669580,-460.0,0.00040547,6]
[363864583,1748904669590,-538.2,0.00040547,6]
[363864584,1748904669599,-460.0,0.00040547,6]
[363864585,1748904669609,-465.32626554,0.00040547,6]
[363864586,1748904669622,-460.0,0.00040547,6]
[363864587,1748904669632,-460.0,0.00040547,6]
[363864588,1748904669642,-1044.63,0.00040547,6]
[363864589,1748904669651,-460.0,0.00040547,6]
[363864590,1748904669662,-460.0,0.00040547,6]
[363864591,1748904669671,-460.0,0.00040547,6]
[363864592,1748904669681,-460.0,0.00040547,6]
[363864593,1748904669691,-460.0,0.00040547,6]
[363864594,1748904669701,-549.09907735,0.00040547,6]
[363864595,1748904669711,-762.85,0.00040547,6]
[363864596,1748904669720,-460.0,0.00040547,6]
[363864597,1748904669729,-2169.71,0.00040547,6]
[363864598,1748904669739,-460.0,0.00040547,6]
[363864599,1748904669748,-460.0,0.00040547,6]
[363864600,1748904669757,-460.0,0.00040547,6]
[363864601,1748904669767,-837.97,0.00040547,6]
[363864602,1748904669776,-1190.35,0.00040547,6]
[363864603,1748904669786,-460.0,0.00040547,6]
[363864604,1748904669795,-460.0,0.00040547,6]
[363864605,1748904669804,-460.0,0.00040547,6]
[363864606,1748904669814,-460.0,0.00040547,6]
[363864607,1748904669823,-479.44,0.00040547,6]
[363864608,1748904669833,-460.0,0.00040547,6]
[363864609,1748904669842,-460.0,0.00040547,6]
[363864610,1748904669852,-1467.29,0.00040547,6]
[363864611,1748904669862,-518.59,0.00040547,6]
[363864612,1748904669872,-460.0,0.00040547,6]
[363864613,1748904669882,-496.4,0.00040547,6]
[363864614,1748904669891,-460.0,0.00040547,6]
[363864615,1748904669901,-447.70037818,0.00040547,6]
[363864616,1748904669910,-460.0,0.00040547,6]
[363864617,1748904669919,-493.42,0.00040547,6]
[363864618,1748904669929,-605.92,0.00040547,6]
[363864619,1748904669939,-460.0,0.00040547,6]
[363864620,1748904669949,-513.81,0.00040547,6]
[363864621,1748904669960,-460.0,0.00040547,6]
[363864622,1748904669969,-598.08,0.00040547,6]
[363864623,1748904669979,-460.0,0.00040547,6]
[363864624,1748904669991,-733.24,0.00040547,6]
[363864625,1748904670001,-709.69,0.00040547,6]
[363864626,1748904670010,-801.08,0.00040547,6]
[363864627,1748904670020,-460.0,0.00040547,6]
[363864628,1748904670031,-460.0,0.00040547,6]
[363864629,1748904670041,-517.7,0.00040547,6]
[363864630,1748904670051,-1337.37,0.00040547,6]
[363864631,1748904670061,-460.0,0.00040547,6]
[363864632,1748904670071,-460.0,0.00040547,6]
[363864633,1748904670081,-472.05,0.00040547,6]
[363864634,1748904670092,-460.0,0.00040547,6]
[363864635,1748904670103,-460.0,0.00040547,6]
[363864636,1748904670112,-460.0,0.00040547,6]
[363864637,1748904670122,-1511.1,0.00040547,6]
[363864638,1748904670132,-712.56,0.00040547,6]
[363864639,1748904670143,-460.0,0.00040547,6]
[363864640,1748904670153,-597.44,0.00040547,6]
[363864641,1748904670162,-460.0,0.00040547,6]
[363864642,1748904670171,-460.0,0.00040547,6]
[363864643,1748904670181,-960.28,0.00040547,6]
[363864644,1748904670190,-460.0,0.00040547,6]
[363864645,1748904670199,-460.0,0.00040547,6]
[363864646,1748904670209,-187.83234906,0.00040547,6]
[363864647,1748904670219,-460.0,0.00040547,6]
[363864648,1748904670228,-460.0,0.00040547,6]
[363864649,1748904670237,-753.84,0.00040547,6]
[363864650,1748904670247,-1247.64,0.00040547,6]
[363864651,1748904670257,-460.0,0.00040547,6]
[363864652,1748904670266,-600.0,0.00040547,6]
[363864653,1748904670275,-519.61,0.00040547,6]
[363864654,1748904670285,-485.01,0.00040547,6]
[363864655,1748904670295,-791.69,0.00040547,6]
[363864656,1748904670306,-460.0,0.00040547,6]
[363864657,1748904670316,-765.94,0.00040547,6]
[363864658,1748904670327,-151.0,0.00040547,14]
[363864659,1748904670338,-151.0,0.00040547,14]
[363864660,1748904670347,-711.627085,0.00040547,6]
[363864661,1748904670357,-221.745722,0.00040547,14]
[363864662,1748904670367,-221.745722,0.00040547,14]
[363864663,1748904670376,-200.0,0.00040561,2]
[363864664,1748904670385,-200.0,0.00040573,7]
[363864665,1748904670395,-200.0,0.00040573,7]
[363864666,1748904670405,-662.8152,0.00040688,30]
[363864667,1748904670415,-4013.0,0.000407,117]
[363864668,1748904670425,-150.0,0.00040707,120]
[363864669,1748904670435,-500.0,0.00040719,30]
[363864670,1748904670447,-747.80285252,0.00040721,15]
[363864671,1748904670457,-204.0,0.00040751,13]
[363864672,1748904670466,-200.0,0.000408,14]
[363864673,1748904670475,-200.0,0.00040818,7]
[363864674,1748904670485,-300.0,0.0004082,10]
[363864675,1748904670494,-1028.97,0.00040821,9]
[363864676,1748904670503,-460.0,0.00040821,6]
[363864677,1748904670512,-790.55,0.00040821,6]
[363864678,1748904670521,-1040.53,0.00040821,6]
[363864679,1748904670538,-719.75,0.00040821,6]
[363864680,1748904670551,-460.0,0.00040821,6]
[363864681,1748904670562,-252.84282547,0.00040821,6]
[363864682,1748904670574,-460.0,0.00040821,2]
[363864683,1748904670583,-722.99,0.00040821,6]
[363864684,1748904670593,-757.63,0.00040821,6]
[363864685,1748904670603,-836.91,0.00040821,6]
[363864686,1748904670616,-758.64,0.00040821,6]
[363864687,1748904670628,-460.0,0.00040821,6]
[363864688,1748904670640,-507.42,0.00040821,6]
[363864689,1748904670650,-480.79,0.00040821,6]
[363864690,1748904670661,-1127.48,0.00040821,6]
[363864691,1748904670671,-1170.16,0.00040821,6]
[363864692,1748904670681,-460.0,0.00040821,6]
[363864693,1748904670690,-538.2,0.00040821,6]
[363864694,1748904670700,-460.0,0.00040821,6]
[363864695,1748904670711,-460.0,0.00040821,6]
[363864696,1748904670722,-460.0,0.00040821,6]
[363864697,1748904670733,-1044.63,0.00040821,6]
[363864698,1748904670743,-460.0,0.00040821,6]
[363864699,1748904670753,-460.0,0.00040821,6]
[363864700,1748904670763,-460.0,0.00040821,6]
[363864701,1748904670774,-460.0,0.00040821,6]
[363864702,1748904670784,-460.0,0.00040821,6]
[363864703,1748904670794,-762.85,0.00040821,6]
[363864704,1748904670804,-460.0,0.00040821,6]
[363864705,1748904670814,-2169.71,0.00040821,6]
[363864706,1748904670824,-460.0,0.00040821,6]
[363864707,1748904670834,-460.0,0.00040821,6]
[363864708,1748904670846,-460.0,0.00040821,6]
[363864709,1748904670857,-837.97,0.00040821,6]
[363864710,1748904670867,-1190.35,0.00040821,6]
[363864711,1748904670878,-460.0,0.00040821,6]
[363864712,1748904670888,-460.0,0.00040821,6]
[363864713,1748904670898,-460.0,0.00040821,6]
[363864714,1748904670908,-460.0,0.00040821,6]
[363864715,1748904670918,-479.44,0.00040821,6]
[363864716,1748904670928,-460.0,0.00040821,6]
[363864717,1748904670938,-460.0,0.00040821,6]
[363864718,1748904670949,-1467.29,0.00040821,6]
[363864719,1748904670959,-518.59,0.00040821,6]
[363864720,1748904670969,-460.0,0.00040821,6]
[363864721,1748904670980,-496.4,0.00040821,6]
[363864722,1748904670990,-460.0,0.00040821,6]
[363864723,1748904671000,-460.0,0.00040821,6]
[363864724,1748904671011,-493.42,0.00040821,6]
[363864725,1748904671021,-605.92,0.00040821,6]
[363864726,1748904671032,-460.0,0.00040821,6]
[363864727,1748904671042,-513.81,0.00040821,6]
[363864728,1748904671053,-460.0,0.00040821,6]
[363864729,1748904671063,-598.08,0.00040821,6]
[363864730,1748904671073,-460.0,0.00040821,6]
[363864731,1748904671083,-733.24,0.00040821,6]
[363864732,1748904671097,-709.69,0.00040821,6]
[363864733,1748904671107,-801.08,0.00040821,6]
[363864734,1748904671117,-460.0,0.00040821,6]
[363864735,1748904671128,-460.0,0.00040821,6]
[363864736,1748904671138,-517.7,0.00040821,6]
[363864737,1748904671148,-1337.37,0.00040821,6]
[363864738,1748904671158,-460.0,0.00040821,6]
[363864739,1748904671168,-460.0,0.00040821,6]
[363864740,1748904671178,-472.05,0.00040821,6]
[363864741,1748904671189,-460.0,0.00040821,6]
[363864742,1748904671199,-460.0,0.00040821,6]
[363864743,1748904671209,-480.0,0.00040821,6]
[363864744,1748904671220,-1511.1,0.00040821,6]
[363864745,1748904671230,-712.56,0.00040821,6]
[363864746,1748904671241,-460.0,0.00040821,6]
[363864747,1748904671251,-597.44,0.00040821,6]
[363864748,1748904671265,-460.0,0.00040821,6]
[363864749,1748904671276,-460.0,0.00040821,6]
[363864750,1748904671287,-960.28,0.00040821,6]
[363864751,1748904671297,-163.91822875,0.00040821,6]
[363864752,1748904671308,-572.08318492,0.00040821,6]
[363864753,1748904671318,-460.0,0.00040821,6]
[363864754,1748904671329,-460.0,0.00040821,6]
[363864755,1748904671342,-753.84,0.00040821,6]
[363864756,1748904671353,-1247.64,0.00040821,6]
[363864757,1748904671363,-460.0,0.00040821,6]
[363864758,1748904671374,-519.61,0.00040821,6]
[363864759,1748904671384,-485.01,0.00040821,6]
[363864760,1748904671396,-791.69,0.00040821,6]
[363864761,1748904671406,-460.0,0.00040821,6]
[363864762,1748904671417,-765.94,0.00040821,6]
[363864763,1748904671428,-711.627085,0.00040821,6]
[363864764,1748904671438,-200.0,0.00040831,120]
[363864765,1748904671449,-150.0,0.00040834,120]
[363864766,1748904671459,-838.6781177,0.00040857,2]
[363864767,1748904671470,-1263.9110044,0.00040885,120]
[363864768,1748904671480,-162.21107944,0.00040885,120]
[363864769,1748904671491,-1232.13968575,0.00040885,120]
[363864770,1748904671502,-168.65677843,0.00040885,120]
[363864771,1748904671512,-1451.0,0.00040887,20]
[363864772,1748904671523,-662.8152,0.00040888,30]
[363864773,1748904671534,-200.0,0.000409,14]
[363864774,1748904671544,-150.0,0.00040946,2]
[363864775,1748904671554,-200.0,0.00040967,2]
[363864776,1748904671564,-200.0,0.00040978,7]
[363864777,1748904671575,-200.0,0.00040978,7]
[363864778,1748904671587,-150.0,0.00040986,7]
[363864779,1748904671598,-272.04998258,0.00040986,7]
[363864780,1748904671609,-210.20100059,0.00040986,7]
[363864781,1748904671621,-247.487598,0.00040986,7]
[363864782,1748904671632,-267.54738706,0.00040986,7]
[363864783,1748904671642,-154.07644077,0.00040986,7]
[363864784,1748904671653,-150.0,0.00040986,7]
[363864785,1748904671664,-223.02513457,0.00040986,7]
[363864786,1748904671674,-212.22430467,0.00040986,7]
[363864787,1748904671685,-257.59460575,0.00040986,7]
[363864788,1748904671695,-3328.1,0.00040989,120]
[363864789,1748904671706,-500.0,0.00040993,30]
[363864790,1748904671716,-747.80285252,0.00040995,15]
[363864791,1748904671726,-50000.0,0.00041,41]
[363864792,1748904671736,-50000.0,0.00041,31]
[363864793,1748904671747,-2000.0,0.00041,2]
[363864794,1748904671757,-15426.79822178,0.00041,5]
[363864795,1748904671767,-23012.14674108,0.00041,5]
[363864796,1748904671778,-5000.0,0.00041,39]
[363864797,1748904671788,-4000.0,0.00041,11]
[363864798,1748904671798,-500.0,0.00041,60]
[363864799,1748904671812,-500.0,0.00041,90]
[363864800,1748904671822,-2623.7803413,0.00041,30]
[363864801,1748904671833,-238.28873315,0.00041,120]
[363864802,1748904671845,-526.00709799,0.00041,120]
[363864803,1748904671855,-164.29,0.00041,120]
[363864804,1748904671865,-318.82073253,0.00041,120]
[363864805,1748904671876,-2694.19,0.00041,14]
[363864806,1748904671886,-151.0,0.00041,14]
[363864807,1748904671897,-151.0,0.00041,14]
[363864808,1748904671907,-151.0,0.00041,14]
[363864809,1748904671917,-151.0,0.00041,14]
[363864810,1748904671928,-151.0,0.00041,14]
[363864811,1748904671938,-6000.34446943,0.00041038,2]
[363864812,1748904671950,-4491.59170514,0.00041038,90]
[363864813,1748904671961,-1000.0,0.00041038,30]
[363864814,1748904671973,-1512.9864544,0.00041067,2]
[363864815,1748904671983,-24550.6632743,0.00041067,2]
[363864816,1748904671993,-2505.6712,0.00041067,2]
[363864817,1748904672003,-7769.9916465,0.00041067,2]
[363864818,1748904672014,-3846.7041451,0.00041067,2]
[363864819,1748904672024,-812.8864217,0.00041072,2]
[363864820,1748904672035,-662.8152,0.00041088,30]
[363864821,1748904672046,-300.0,0.00041094,10]
[363864822,1748904672057,-3328.1,0.00041094,120]
[363864823,1748904672068,-3328.1,0.00041094,120]
[363864824,1748904672079,-3328.1,0.00041094,120]
[363864825,1748904672090,-3328.1,0.00041094,120]
[363864826,1748904672101,-3328.1,0.00041094,120]
[363864827,1748904672111,-3328.1,0.00041094,120]
[363864828,1748904672121,-1028.97,0.00041095,9]
[363864829,1748904672131,-267.0,0.00041095,90]
[363864830,1748904672142,-838.0,0.00041095,120]
[363864831,1748904672152,-151.0,0.00041095,14]
[363864832,1748904672163,-153.907399,0.00041095,14]
[363864833,1748904672175,-166.262997,0.00041095,14]
[363864834,1748904672186,-151.0,0.00041095,14]
[363864835,1748904672196,-151.0,0.00041095,14]
[363864836,1748904672206,-151.0,0.00041095,14]
[363864837,1748904672216,-151.0,0.00041095,14]
[363864838,1748904672226,-151.0,0.00041095,14]
[363864839,1748904672236,-151.0,0.00041095,14]
[363864840,1748904672246,-151.0,0.00041095,14]
[363864841,1748904672258,-151.0,0.00041095,14]
[363864842,1748904672268,-151.0,0.00041095,14]
[363864843,1748904672279,-151.0,0.00041095,14]
[363864844,1748904672290,-151.0,0.00041095,14]
[363864845,1748904672300,-151.0,0.00041095,14]
[363864846,1748904672310,-151.0,0.00041095,14]
[363864847,1748904672320,-160.582067,0.00041095,14]
[363864848,1748904672331,-151.0,0.00041095,14]
[363864849,1748904672344,-151.0,0.00041095,14]
[363864850,1748904672354,-287.828821,0.00041095,14]
[363864851,1748904672366,-151.0,0.00041095,14]
[363864852,1748904672376,-151.0,0.00041095,14]
[363864853,1748904672387,-151.0,0.00041095,14]
[363864854,1748904672398,-151.0,0.00041095,14]
[363864855,1748904672409,-151.0,0.00041095,14]
[363864856,1748904672420,-173.712388,0.00041095,14]
[363864857,1748904672431,-151.0,0.00041095,14]
[363864858,1748904672440,-171.22387727,0.00041095,14]
[363864859,1748904672451,-203.236136,0.00041095,14]
[363864860,1748904672461,-203.236136,0.00041095,14]
[363864861,1748904672471,-203.236136,0.00041095,14]
[363864862,1748904672482,-203.236136,0.00041095,14]
[363864863,1748904672492,-151.0,0.00041095,14]
[363864864,1748904672502,-151.0,0.00041095,14]
[363864865,1748904672512,-151.0,0.00041095,14]
[363864866,1748904672523,-427.17649518,0.00041095,120]
[363864867,1748904672533,-500.0,0.00041095,120]
[363864868,1748904672543,-500.0,0.00041095,120]
[363864869,1748904672553,-500.0,0.00041095,120]
[363864870,1748904672564,-500.0,0.00041095,120]
[363864871,1748904672575,-522.97857601,0.00041095,120]
[363864872,1748904672585,-563.55916959,0.00041095,120]
[363864873,1748904672595,-420.0,0.00041095,120]
[363864874,1748904672606,-460.0,0.00041095,120]
[363864875,1748904672617,-420.0,0.00041095,120]
[363864876,1748904672627,-460.0,0.00041095,16]
[363864877,1748904672638,-460.0,0.00041095,120]
[363864878,1748904672648,-423.93025735,0.00041095,120]
[363864879,1748904672659,-460.0,0.00041095,120]
[363864880,1748904672669,-460.0,0.00041095,120]
[363864881,1748904672679,-460.0,0.00041095,120]
[363864882,1748904672690,-383.74090781,0.00041095,120]
[363864883,1748904672700,-460.0,0.00041095,120]
[363864884,1748904672710,-421.47467049,0.00041095,120]
[363864885,1748904672720,-460.0,0.00041095,5]
[363864886,1748904672730,-436.99882884,0.00041095,120]
[363864887,1748904672740,-544.57320585,0.00041095,120]
[363864888,1748904672750,-460.0,0.00041095,120]
[363864889,1748904672761,-460.0,0.00041095,120]
[363864890,1748904672772,-460.0,0.00041095,120]
[363864891,1748904672783,-460.0,0.00041095,120]
[363864892,1748904672794,-420.72368222,0.00041095,120]
[363864893,1748904672805,-460.0,0.00041095,2]
[363864894,1748904672815,-369.68603,0.00041095,14]
[363864895,1748904672825,-369.68603,0.00041095,14]
[363864896,1748904672836,-460.0,0.00041095,3]
[363864897,1748904672846,-369.68603,0.00041095,14]
[363864898,1748904672857,-369.68603,0.00041095,14]
[363864899,1748904672867,-460.0,0.00041095,120]
[363864900,1748904672877,-460.0,0.00041095,120]
[363864901,1748904672887,-460.0,0.00041095,120]
[363864902,1748904672898,-460.0,0.00041095,120]
[363864903,1748904672909,-460.0,0.00041095,120]
[363864904,1748904672919,-460.0,0.00041095,120]
[363864905,1748904672929,-421.87893408,0.00041095,120]
[363864906,1748904672941,-460.0,0.00041095,120]
[363864907,1748904673243,-220.32991698,0.00041095,120]
[363864908,1748904673254,-420.0,0.00041095,120]
[363864909,1748904673264,-460.0,0.00041095,120]
[363864910,1748904673273,-460.0,0.00041095,120]
[363864911,1748904673283,-421.37927755,0.00041095,120]
[363864912,1748904673293,-460.0,0.00041095,120]
[363864913,1748904673303,-460.0,0.00041095,120]
[363864914,1748904673313,-460.0,0.00041095,120]
[363864915,1748904673323,-151.0,0.00041095,14]
[363864916,1748904673333,-460.0,0.00041095,120]
[363864917,1748904673345,-460.0,0.00041095,120]
[363864918,1748904673355,-460.0,0.00041095,120]
[363864919,1748904673365,-460.0,0.00041095,120]
[363864920,1748904673375,-460.0,0.00041095,120]
[363864921,1748904673384,-460.0,0.00041095,120]
[363864922,1748904673394,-151.0,0.00041095,14]
[363864923,1748904673404,-406.79452552,0.00041095,120]
[363864924,1748904673414,-151.0,0.00041095,14]
[363864925,1748904673424,-420.64257056,0.00041095,120]
[363864926,1748904673434,-151.0,0.00041095,14]
[363864927,1748904673444,-423.15850957,0.00041095,120]
[363864928,1748904673454,-151.0,0.00041095,14]
[363864929,1748904673463,-151.0,0.00041095,14]
[363864930,1748904673474,-460.0,0.00041095,120]
[363864931,1748904673484,-460.0,0.00041095,120]
[363864932,1748904673494,-270.6649373,0.00041095,120]
[363864933,1748904673504,-420.4116493,0.00041095,7]
[363864934,1748904673514,-460.0,0.00041095,120]
[363864935,1748904673525,-420.0,0.00041095,120]
[363864936,1748904673535,-420.4980738,0.00041095,120]
[363864937,1748904673544,-460.0,0.00041095,120]
[363864938,1748904673555,-151.0,0.00041095,14]
[363864939,1748904673565,-460.0,0.00041095,120]
[363864940,1748904673575,-425.11283122,0.00041095,120]
[363864941,1748904673585,-460.0,0.00041095,120]
[363864942,1748904673601,-460.0,0.00041095,120]
[363864943,1748904673611,-151.0,0.00041095,14]
[363864944,1748904673626,-460.0,0.00041095,120]
[363864945,1748904673636,-460.0,0.00041095,120]
[363864946,1748904673646,-421.66887835,0.00041095,120]
[363864947,1748904673656,-460.0,0.00041095,120]
[363864948,1748904673666,-460.0,0.00041095,120]
[363864949,1748904673676,-460.0,0.00041095,120]
[363864950,1748904673686,-460.0,0.00041095,120]
[363864951,1748904673698,-460.0,0.00041095,120]
[363864952,1748904673708,-460.0,0.00041095,120]
[363864953,1748904673718,-460.0,0.00041095,120]
[363864954,1748904673728,-460.0,0.00041095,120]
[363864955,1748904673738,-460.0,0.00041095,120]
[363864956,1748904673748,-460.0,0.00041095,120]
[363864957,1748904673759,-460.0,0.00041095,120]
[363864958,1748904673769,-460.0,0.00041095,120]
[363864959,1748904673779,-460.0,0.00041095,120]
[363864960,1748904673788,-460.0,0.00041095,120]
[363864961,1748904673798,-460.0,0.00041095,120]
[363864962,1748904673808,-460.0,0.00041095,120]
[363864963,1748904673818,-151.0,0.00041095,14]
[363864964,1748904673827,-460.0,0.00041095,120]
[363864965,1748904673837,-460.0,0.00041095,120]
[363864966,1748904673849,-420.0,0.00041095,120]
[363864967,1748904673860,-460.0,0.00041095,120]
[363864968,1748904673869,-460.0,0.00041095,120]
[363864969,1748904673879,-460.0,0.00041095,120]
[363864970,1748904673899,-151.0,0.00041095,14]
[363864971,1748904673911,-460.0,0.00041095,120]
[363864972,1748904673922,-460.0,0.00041095,120]
[363864973,1748904673932,-460.0,0.00041095,120]
[363864974,1748904673943,-460.0,0.00041095,120]
[363864975,1748904673953,-171.22757578,0.00041095,120]
[363864976,1748904673964,-460.0,0.00041095,120]
[363864977,1748904673974,-460.0,0.00041095,120]
[363864978,1748904673984,-460.0,0.00041095,120]
[363864979,1748904673995,-460.0,0.00041095,120]
[363864980,1748904674005,-420.90386517,0.00041095,120]
[363864981,1748904674015,-460.0,0.00041095,120]
[363864982,1748904674026,-481.57,0.00041095,120]
[363864983,1748904674036,-460.0,0.00041095,30]
[363864984,1748904674047,-460.0,0.00041095,120]
[363864985,1748904674057,-460.0,0.00041095,120]
[363864986,1748904674069,-460.0,0.00041095,120]
[363864987,1748904674079,-460.0,0.00041095,120]
[363864988,1748904674089,-460.0,0.00041095,120]
[363864989,1748904674100,-460.0,0.00041095,120]
[363864990,1748904674109,-460.0,0.00041095,120]
[363864991,1748904674120,-460.0,0.00041095,120]
[363864992,1748904674130,-460.0,0.00041095,120]
[363864993,1748904674140,-460.0,0.00041095,120]
[363864994,1748904674150,-460.0,0.00041095,120]
[363864995,1748904674161,-687.09,0.00041095,120]
[363864996,1748904674171,-460.0,0.00041095,120]
[363864997,1748904674181,-460.0,0.00041095,120]
[363864998,1748904674192,-460.0,0.00041095,120]
[363864999,1748904674202,-460.0,0.00041095,120]
[363865000,1748904674212,-460.0,0.00041095,120]
[363865001,1748904674222,-460.0,0.00041095,120]
[363865002,1748904674232,-519.55,0.00041095,120]
[363865003,1748904674242,-460.0,0.00041095,120]
[363865004,1748904674252,-460.0,0.00041095,120]
[363865005,1748904674262,-460.0,0.00041095,120]
[363865006,1748904674272,-499.26011605,0.00041095,120]
[363865007,1748904674282,-460.0,0.00041095,120]
[363865008,1748904674292,-460.0,0.00041095,120]
[363865009,1748904674302,-388.71547757,0.00041095,120]
[363865010,1748904674313,-460.0,0.00041095,120]
[363865011,1748904674324,-460.0,0.00041095,120]
[363865012,1748904674334,-460.0,0.00041095,120]
[363865013,1748904674348,-151.0,0.00041095,14]
[363865014,1748904674358,-460.0,0.00041095,120]
[363865015,1748904674368,-460.0,0.00041095,120]
[363865016,1748904674378,-460.0,0.00041095,120]
[363865017,1748904674389,-460.0,0.00041095,120]
[363865018,1748904674400,-420.86863417,0.00041095,120]
[363865019,1748904674410,-460.0,0.00041095,120]
[363865020,1748904674421,-460.0,0.00041095,120]
[363865021,1748904674431,-546.07,0.00041095,120]
[363865022,1748904674442,-460.0,0.00041095,120]
[363865023,1748904674452,-460.0,0.00041095,120]
[363865024,1748904674463,-420.0,0.00041095,120]
[363865025,1748904674473,-460.0,0.00041095,120]
[363865026,1748904674483,-460.0,0.00041095,120]
[363865027,1748904674493,-460.0,0.00041095,120]
[363865028,1748904674503,-460.0,0.00041095,120]
[363865029,1748904674513,-460.0,0.00041095,30]
[363865030,1748904674523,-460.0,0.00041095,120]
[363865031,1748904674533,-460.0,0.00041095,120]
[363865032,1748904674543,-460.0,0.00041095,120]
[363865033,1748904674553,-460.0,0.00041095,120]
[363865034,1748904674563,-460.0,0.00041095,120]
[363865035,1748904674572,-422.10302876,0.00041095,120]
[363865036,1748904674582,-460.0,0.00041095,120]
[363865037,1748904674594,-151.0,0.00041095,14]
[363865038,1748904674605,-460.0,0.00041095,120]
[363865039,1748904674616,-460.0,0.00041095,120]
[363865040,1748904674627,-460.0,0.00041095,120]
[363865041,1748904674636,-460.0,0.00041095,120]
[363865042,1748904674646,-460.0,0.00041095,120]
[363865043,1748904674657,-460.0,0.00041095,120]
[363865044,1748904674667,-152.1353231,0.00041095,120]
[363865045,1748904674677,-460.0,0.00041095,120]
[363865046,1748904674687,-460.0,0.00041095,120]
[363865047,1748904674697,-460.0,0.00041095,120]
[363865048,1748904674707,-304.32624933,0.00041095,120]
[363865049,1748904674718,-460.0,0.00041095,120]
[363865050,1748904674728,-460.0,0.00041095,120]